[Event "Late-Titled-Tuesday-Blitz-January-16-2024"]
[Site "Chess.com"]
[Date "2024.01.16"]
[Round "4"]
[White "tactic"]
[Black "Arifarsky"]
[Result "0-1"]
[WhiteElo "2540"]
[BlackElo "2715"]
[TimeControl "180+1"]
[EndTime "14:37:38 PST"]
[Termination "Arifarsky won by resignation"]

1. e4 {[%clk 0:03:00.9]} 1... e5 {[%clk 0:02:58.6]} 2. Nf3 {[%clk 0:03:01.2]}
2... Nc6 {[%clk 0:02:58.4]} 3. Bc4 {[%clk 0:03:01.9]} 3... Bc5 {[%clk
0:02:55.5]} 4. d4 {[%clk 0:03:01.9]} 4... Bxd4 {[%clk 0:02:53]} 5. Nxd4 {[%clk
0:03:02.2]} 5... exd4 {[%clk 0:02:41.5]} 6. O-O {[%clk 0:02:47.4]} 6... Nge7
{[%clk 0:02:27.7]} 7. c3 {[%clk 0:02:20.7]} 7... dxc3 {[%clk 0:02:07.4]} 8. Nxc3
{[%clk 0:02:21.6]} 8... O-O {[%clk 0:02:07.2]} 9. f4 {[%clk 0:02:20.8]} 9... Na5
{[%clk 0:01:58.6]} 10. Bd3 {[%clk 0:02:19.7]} 10... d6 {[%clk 0:01:53.5]} 11.
Qh5 {[%clk 0:02:07.6]} 11... f5 {[%clk 0:01:46.6]} 12. exf5 {[%clk 0:01:50.6]}
12... Bxf5 {[%clk 0:01:44.2]} 13. Re1 {[%clk 0:01:27.9]} 13... Nac6 {[%clk
0:01:37.6]} 14. Bc4+ {[%clk 0:01:25.6]} 14... Kh8 {[%clk 0:01:36.2]} 15. Bd2
{[%clk 0:01:01.9]} 15... Bg6 {[%clk 0:01:28.7]} 16. Qe2 {[%clk 0:01:00]} 16...
Nf5 {[%clk 0:01:27.3]} 17. Rac1 {[%clk 0:00:32]} 17... Ncd4 {[%clk 0:00:56.7]}
18. Qd1 {[%clk 0:00:29.9]} 18... h5 {[%clk 0:00:52.4]} 19. Ne4 {[%clk
0:00:28.8]} 19... d5 {[%clk 0:00:48.4]} 20. Bxd5 {[%clk 0:00:17.8]} 20... Qxd5
{[%clk 0:00:49.3]} 21. Rc5 {[%clk 0:00:15.5]} 21... Qd7 {[%clk 0:00:44.2]} 22.
Bc3 {[%clk 0:00:15.6]} 22... Rad8 {[%clk 0:00:40.6]} 23. Ng5 {[%clk 0:00:14.8]}
23... b6 {[%clk 0:00:40.4]} 24. Rce5 {[%clk 0:00:14.7]} 24... c5 {[%clk
0:00:34.6]} 25. Qd2 {[%clk 0:00:10.1]} 25... Rde8 {[%clk 0:00:31.9]} 26. Qf2
{[%clk 0:00:06.2]} 26... Rxe5 {[%clk 0:00:31.6]} 27. Rxe5 {[%clk 0:00:07.1]}
27... Nc6 {[%clk 0:00:29.2]} 28. Re6 {[%clk 0:00:06.6]} 28... Bf7 {[%clk
0:00:24.7]} 29. Re1 {[%clk 0:00:06.8]} 29... Ncd4 {[%clk 0:00:21.4]} 30. Kh1
{[%clk 0:00:07.1]} 30... Bd5 {[%clk 0:00:20.6]} 31. Kg1 {[%clk 0:00:07]} 31...
Kg8 {[%clk 0:00:20.1]} 32. Re5 {[%clk 0:00:07.5]} 32... Re8 {[%clk 0:00:20.1]}
33. Qd2 {[%clk 0:00:07.3]} 33... Rxe5 {[%clk 0:00:19.8]} 34. fxe5 {[%clk
0:00:08.2]} 34... Qe7 {[%clk 0:00:19.3]} 35. Qf4 {[%clk 0:00:08.6]} 35... Ne2+
{[%clk 0:00:17.7]} 0-1

[Event "Late-Titled-Tuesday-Blitz-January-16-2024"]
[Site "Chess.com"]
[Date "2024.01.16"]
[Round "4"]
[White "pooh2012"]
[Black "Rikikits"]
[Result "0-1"]
[WhiteElo "2547"]
[BlackElo "2834"]
[TimeControl "180+1"]
[EndTime "14:37:40 PST"]
[Termination "Rikikits won on time"]

1. Nf3 {[%clk 0:03:00.9]} 1... c6 {[%clk 0:03:00.9]} 2. g3 {[%clk 0:03:00.2]}
2... d5 {[%clk 0:03:00.3]} 3. Bg2 {[%clk 0:03:00.4]} 3... Bg4 {[%clk 0:03:00.6]}
4. d3 {[%clk 0:02:59.7]} 4... Nd7 {[%clk 0:03:00.5]} 5. c4 {[%clk 0:02:54.9]}
5... dxc4 {[%clk 0:02:58.9]} 6. dxc4 {[%clk 0:02:54.6]} 6... Ngf6 {[%clk
0:02:57.1]} 7. O-O {[%clk 0:02:51.5]} 7... e6 {[%clk 0:02:57.3]} 8. Nc3 {[%clk
0:02:48.3]} 8... Nc5 {[%clk 0:02:56.7]} 9. h3 {[%clk 0:02:42.1]} 9... Qxd1
{[%clk 0:02:52.9]} 10. Rxd1 {[%clk 0:02:41.3]} 10... Bf5 {[%clk 0:02:52.9]} 11.
Nh4 {[%clk 0:02:35.1]} 11... Bc2 {[%clk 0:02:52.9]} 12. Rd2 {[%clk 0:02:32]}
12... Bg6 {[%clk 0:02:50.8]} 13. Nxg6 {[%clk 0:02:31.4]} 13... hxg6 {[%clk
0:02:50.9]} 14. b3 {[%clk 0:02:29.6]} 14... a5 {[%clk 0:02:49]} 15. Bb2 {[%clk
0:02:11.3]} 15... Be7 {[%clk 0:02:48.2]} 16. Rad1 {[%clk 0:02:05.7]} 16... Rd8
{[%clk 0:02:48]} 17. Rxd8+ {[%clk 0:02:01]} 17... Bxd8 {[%clk 0:02:48.9]} 18. e4
{[%clk 0:01:35.2]} 18... e5 {[%clk 0:02:36.3]} 19. Ba3 {[%clk 0:01:17.2]} 19...
Be7 {[%clk 0:02:35.8]} 20. Bc1 {[%clk 0:01:04.7]} 20... Ne6 {[%clk 0:02:33.4]}
21. Be3 {[%clk 0:01:04.7]} 21... Bc5 {[%clk 0:02:30.4]} 22. Bxc5 {[%clk
0:01:01.3]} 22... Nxc5 {[%clk 0:02:31.3]} 23. h4 {[%clk 0:00:56.6]} 23... Ke7
{[%clk 0:02:28.7]} 24. Kf1 {[%clk 0:00:54.8]} 24... Rd8 {[%clk 0:02:28.4]} 25.
Rxd8 {[%clk 0:00:54.3]} 25... Kxd8 {[%clk 0:02:29.3]} 26. Ke2 {[%clk 0:00:46]}
26... Ke7 {[%clk 0:02:29]} 27. f3 {[%clk 0:00:43.2]} 27... Nh5 {[%clk
0:02:28.3]} 28. Kf2 {[%clk 0:00:39.6]} 28... Kd6 {[%clk 0:02:28.2]} 29. Bf1
{[%clk 0:00:37.2]} 29... Nf6 {[%clk 0:02:25.2]} 30. Ke3 {[%clk 0:00:30.8]} 30...
Nfd7 {[%clk 0:02:25.1]} 31. Bh3 {[%clk 0:00:30.1]} 31... Nf8 {[%clk 0:02:21.2]}
32. f4 {[%clk 0:00:25.9]} 32... f6 {[%clk 0:02:20.7]} 33. Bg4 {[%clk 0:00:24.5]}
33... Nfe6 {[%clk 0:02:20]} 34. Bxe6 {[%clk 0:00:24.4]} 34... Nxe6 {[%clk
0:02:20.8]} 35. Ne2 {[%clk 0:00:20.8]} 35... Kc5 {[%clk 0:02:18.2]} 36. Kd3
{[%clk 0:00:20.6]} 36... Kb4 {[%clk 0:02:15]} 37. f5 {[%clk 0:00:17.9]} 37...
Nc5+ {[%clk 0:02:13.6]} 38. Ke3 {[%clk 0:00:17.6]} 38... gxf5 {[%clk 0:02:13.3]}
39. exf5 {[%clk 0:00:17.5]} 39... Ka3 {[%clk 0:02:13.1]} 40. Nc3 {[%clk
0:00:17.5]} 40... b5 {[%clk 0:01:49.7]} 41. cxb5 {[%clk 0:00:16.2]} 41... cxb5
{[%clk 0:01:50.6]} 42. Nxb5+ {[%clk 0:00:14.1]} 42... Kxa2 {[%clk 0:01:51.1]}
43. g4 {[%clk 0:00:14.4]} 43... Kxb3 {[%clk 0:01:50.5]} 44. g5 {[%clk
0:00:14.1]} 44... Nd7 {[%clk 0:01:47]} 45. Ke4 {[%clk 0:00:11.6]} 45... Kb4
{[%clk 0:01:46]} 46. Nc7 {[%clk 0:00:09.3]} 46... a4 {[%clk 0:01:46.4]} 47. Nd5+
{[%clk 0:00:09.4]} 47... Kb3 {[%clk 0:01:46.9]} 48. gxf6 {[%clk 0:00:08.8]}
48... Nxf6+ {[%clk 0:01:39.4]} 49. Nxf6 {[%clk 0:00:07.5]} 49... gxf6 {[%clk
0:01:40.3]} 50. h5 {[%clk 0:00:06.7]} 50... a3 {[%clk 0:01:41]} 51. h6 {[%clk
0:00:07.2]} 51... a2 {[%clk 0:01:41.9]} 52. h7 {[%clk 0:00:07.7]} 52... a1=Q
{[%clk 0:01:42.8]} 53. h8=Q {[%clk 0:00:08.1]} 53... Qd4+ {[%clk 0:01:42.8]} 54.
Kf3 {[%clk 0:00:07.6]} 54... Qf4+ {[%clk 0:01:43.4]} 55. Ke2 {[%clk 0:00:07.7]}
55... Qxf5 {[%clk 0:01:41]} 56. Qb8+ {[%clk 0:00:05.5]} 56... Kc4 {[%clk
0:01:39.4]} 57. Qc7+ {[%clk 0:00:04.3]} 57... Kd5 {[%clk 0:01:37.1]} 58. Qb7+
{[%clk 0:00:03.7]} 58... Kd6 {[%clk 0:01:35.3]} 59. Qb6+ {[%clk 0:00:03.2]}
59... Ke7 {[%clk 0:01:35.6]} 60. Qb7+ {[%clk 0:00:02.3]} 60... Qd7 {[%clk
0:01:35]} 61. Qb4+ {[%clk 0:00:02.9]} 61... Qd6 {[%clk 0:01:35.1]} 62. Qh4
{[%clk 0:00:03.1]} 62... Ke6 {[%clk 0:01:36]} 63. Qg4+ {[%clk 0:00:03.2]} 63...
Kd5 {[%clk 0:01:33.8]} 64. Qf3+ {[%clk 0:00:02.4]} 64... Kc5 {[%clk 0:01:34.1]}
65. Qa3+ {[%clk 0:00:02.6]} 65... Kc6 {[%clk 0:01:34.4]} 0-1

[Event "Late-Titled-Tuesday-Blitz-January-16-2024"]
[Site "Chess.com"]
[Date "2024.01.16"]
[Round "4"]
[White "kenta1234"]
[Black "alertakobra"]
[Result "0-1"]
[WhiteElo "2760"]
[BlackElo "2426"]
[TimeControl "180+1"]
[EndTime "14:37:41 PST"]
[Termination "alertakobra won by resignation"]

1. Nf3 {[%clk 0:03:00.9]} 1... Nf6 {[%clk 0:02:58.6]} 2. d4 {[%clk 0:03:00.9]}
2... g6 {[%clk 0:02:58.7]} 3. c4 {[%clk 0:03:00.7]} 3... Bg7 {[%clk 0:02:58]} 4.
g3 {[%clk 0:03:01.2]} 4... O-O {[%clk 0:02:57]} 5. Bg2 {[%clk 0:03:01.5]} 5...
d5 {[%clk 0:02:57.4]} 6. cxd5 {[%clk 0:03:00.9]} 6... Nxd5 {[%clk 0:02:57.1]} 7.
O-O {[%clk 0:03:01.8]} 7... Nc6 {[%clk 0:02:52.9]} 8. e3 {[%clk 0:03:01.7]} 8...
Re8 {[%clk 0:02:51.6]} 9. Nc3 {[%clk 0:02:57.5]} 9... Nb6 {[%clk 0:02:51.6]} 10.
h3 {[%clk 0:02:43.1]} 10... e5 {[%clk 0:02:49.5]} 11. d5 {[%clk 0:02:43]} 11...
Na5 {[%clk 0:02:47.8]} 12. e4 {[%clk 0:02:40.4]} 12... c6 {[%clk 0:02:46.7]} 13.
Re1 {[%clk 0:02:35.6]} 13... cxd5 {[%clk 0:02:44.3]} 14. exd5 {[%clk 0:02:36.5]}
14... Nac4 {[%clk 0:02:44.2]} 15. b3 {[%clk 0:02:25]} 15... Nd6 {[%clk 0:02:44]}
16. Bb2 {[%clk 0:02:23.8]} 16... Bd7 {[%clk 0:02:35.8]} 17. Rc1 {[%clk
0:02:22.8]} 17... f5 {[%clk 0:02:30.1]} 18. Ba3 {[%clk 0:02:16.4]} 18... Qf6
{[%clk 0:02:25.5]} 19. Bc5 {[%clk 0:01:55.7]} 19... Rac8 {[%clk 0:02:14.9]} 20.
b4 {[%clk 0:01:55.8]} 20... Nbc4 {[%clk 0:02:10.2]} 21. Nd2 {[%clk 0:01:54.2]}
21... b6 {[%clk 0:02:04.4]} 22. Nxc4 {[%clk 0:01:31.1]} 22... Nxc4 {[%clk
0:01:55.6]} 23. Qb3 {[%clk 0:01:07.1]} 23... Nd2 {[%clk 0:01:30]} 24. Qd1 {[%clk
0:01:03.7]} 24... bxc5 {[%clk 0:01:29.2]} 25. bxc5 {[%clk 0:01:01]} 25... Rxc5
{[%clk 0:01:21.9]} 26. Qxd2 {[%clk 0:01:01.3]} 26... Rec8 {[%clk 0:01:22.1]} 27.
d6 {[%clk 0:01:00.5]} 27... e4 {[%clk 0:01:09.7]} 28. Nd5 {[%clk 0:00:55]} 28...
Qxd6 {[%clk 0:01:09.1]} 29. Rxc5 {[%clk 0:00:54.3]} 29... Rxc5 {[%clk
0:01:08.8]} 30. Rd1 {[%clk 0:00:36]} 30... Ba4 {[%clk 0:01:06.6]} 31. Rb1 {[%clk
0:00:21.5]} 31... Rxd5 {[%clk 0:01:02.9]} 32. Rb8+ {[%clk 0:00:21.2]} 32... Qxb8
{[%clk 0:00:54.4]} 33. Qxd5+ {[%clk 0:00:21.5]} 33... Kh8 {[%clk 0:00:54.8]} 34.
Bf1 {[%clk 0:00:22.2]} 34... Bc2 {[%clk 0:00:37.5]} 35. Bc4 {[%clk 0:00:20.4]}
35... Bd3 {[%clk 0:00:37.7]} 36. Bxd3 {[%clk 0:00:16.1]} 36... exd3 {[%clk
0:00:38.6]} 37. Qxd3 {[%clk 0:00:16.6]} 37... h5 {[%clk 0:00:38.5]} 38. h4
{[%clk 0:00:16.3]} 38... Qe5 {[%clk 0:00:37.5]} 39. a4 {[%clk 0:00:15]} 39...
Kh7 {[%clk 0:00:37.7]} 40. Qd7 {[%clk 0:00:15]} 40... a5 {[%clk 0:00:36.6]} 41.
Kg2 {[%clk 0:00:14.8]} 41... f4 {[%clk 0:00:36.6]} 42. g4 {[%clk 0:00:13.1]}
42... Qe4+ {[%clk 0:00:34.4]} 43. Kf1 {[%clk 0:00:12.7]} 43... f3 {[%clk
0:00:27.7]} 0-1

[Event "Late-Titled-Tuesday-Blitz-January-16-2024"]
[Site "Chess.com"]
[Date "2024.01.16"]
[Round "4"]
[White "secretsuperstar7"]
[Black "dasatcu90"]
[Result "1-0"]
[WhiteElo "2503"]
[BlackElo "2282"]
[TimeControl "180+1"]
[EndTime "14:37:42 PST"]
[Termination "secretsuperstar7 won by checkmate"]

1. c4 {[%clk 0:02:52.7]} 1... c6 {[%clk 0:02:59.3]} 2. Nc3 {[%clk 0:02:52.5]}
2... d5 {[%clk 0:03:00.2]} 3. e3 {[%clk 0:02:52.9]} 3... Nf6 {[%clk 0:02:59.7]}
4. Nf3 {[%clk 0:02:53.3]} 4... a6 {[%clk 0:02:57.2]} 5. b3 {[%clk 0:02:53]} 5...
Bf5 {[%clk 0:02:55]} 6. Bb2 {[%clk 0:02:44.7]} 6... e6 {[%clk 0:02:55.4]} 7. Be2
{[%clk 0:02:44.2]} 7... Bd6 {[%clk 0:02:44.8]} 8. O-O {[%clk 0:02:43]} 8... h6
{[%clk 0:02:44.2]} 9. d3 {[%clk 0:02:30.7]} 9... Bh7 {[%clk 0:02:43.3]} 10. Re1
{[%clk 0:02:29.1]} 10... O-O {[%clk 0:02:43]} 11. Bf1 {[%clk 0:02:29]} 11...
Nbd7 {[%clk 0:02:24.8]} 12. e4 {[%clk 0:02:28.8]} 12... dxe4 {[%clk 0:02:07.4]}
13. Nxe4 {[%clk 0:02:27.3]} 13... Be7 {[%clk 0:01:46.2]} 14. Qc2 {[%clk
0:02:20.1]} 14... Qc7 {[%clk 0:01:24.7]} 15. Rad1 {[%clk 0:02:16.7]} 15... Rad8
{[%clk 0:01:22.1]} 16. a3 {[%clk 0:02:01.4]} 16... a5 {[%clk 0:01:09.4]} 17. Qc3
{[%clk 0:01:57.8]} 17... Nc5 {[%clk 0:01:01.5]} 18. Nxc5 {[%clk 0:01:51.1]}
18... Bxc5 {[%clk 0:01:00.8]} 19. b4 {[%clk 0:01:51.4]} 19... axb4 {[%clk
0:00:58.9]} 20. axb4 {[%clk 0:01:52.3]} 20... Be7 {[%clk 0:00:53.2]} 21. Ne5
{[%clk 0:01:49.5]} 21... Ne8 {[%clk 0:00:47.4]} 22. Ng4 {[%clk 0:01:42.1]} 22...
h5 {[%clk 0:00:43.6]} 23. Nh6+ {[%clk 0:01:25.9]} 23... Kh8 {[%clk 0:00:43.2]}
24. Be2 {[%clk 0:01:19.5]} 24... Bf6 {[%clk 0:00:42.6]} 25. Qc1 {[%clk
0:01:14.5]} 25... gxh6 {[%clk 0:00:37.5]} 26. Qxh6 {[%clk 0:01:05.2]} 26... Qe7
{[%clk 0:00:21.7]} 27. Bxh5 {[%clk 0:00:38.5]} 27... Bxb2 {[%clk 0:00:19.9]} 28.
d4 {[%clk 0:00:36]} 28... Nf6 {[%clk 0:00:17.8]} 29. Rd3 {[%clk 0:00:28.7]}
29... Nxh5 {[%clk 0:00:17.2]} 30. Qxh5 {[%clk 0:00:28.7]} 30... f5 {[%clk
0:00:16.7]} 31. Rh3 {[%clk 0:00:26.3]} 31... Bxd4 {[%clk 0:00:14.9]} 32. Rxe6
{[%clk 0:00:26.2]} 32... Qg7 {[%clk 0:00:14.2]} 33. Rg6 {[%clk 0:00:24.2]} 33...
Rf7 {[%clk 0:00:12.2]} 34. Rxg7 {[%clk 0:00:22.9]} 34... Rxg7 {[%clk 0:00:13.1]}
35. Qh4 {[%clk 0:00:16.6]} 35... Rgd7 {[%clk 0:00:11.2]} 36. g3 {[%clk
0:00:11.1]} 36... Bg7 {[%clk 0:00:11.6]} 37. Qxh7# {[%clk 0:00:10]} 1-0

[Event "Late-Titled-Tuesday-Blitz-January-16-2024"]
[Site "Chess.com"]
[Date "2024.01.16"]
[Round "4"]
[White "jk13"]
[Black "scandalgod"]
[Result "1-0"]
[WhiteElo "2691"]
[BlackElo "2510"]
[TimeControl "180+1"]
[EndTime "14:37:44 PST"]
[Termination "jk13 won by checkmate"]

1. e4 {[%clk 0:02:57.6]} 1... e5 {[%clk 0:02:59.8]} 2. Nf3 {[%clk 0:02:56.3]}
2... Nc6 {[%clk 0:03:00]} 3. Bc4 {[%clk 0:02:56.9]} 3... Nf6 {[%clk 0:02:57.7]}
4. d3 {[%clk 0:02:57.4]} 4... Be7 {[%clk 0:02:57.5]} 5. O-O {[%clk 0:02:58]}
5... O-O {[%clk 0:02:57.4]} 6. Re1 {[%clk 0:02:58.7]} 6... d6 {[%clk 0:02:57.6]}
7. a4 {[%clk 0:02:58.1]} 7... Be6 {[%clk 0:02:57.7]} 8. Nc3 {[%clk 0:02:58.4]}
8... Qd7 {[%clk 0:02:56.6]} 9. a5 {[%clk 0:02:58.8]} 9... a6 {[%clk 0:02:56.6]}
10. Nd5 {[%clk 0:02:59.4]} 10... Rae8 {[%clk 0:02:55]} 11. c3 {[%clk 0:02:59.3]}
11... Kh8 {[%clk 0:02:53.3]} 12. b4 {[%clk 0:02:55.6]} 12... Bg4 {[%clk
0:02:42.6]} 13. b5 {[%clk 0:02:48.5]} 13... Nb8 {[%clk 0:02:22.8]} 14. bxa6
{[%clk 0:02:36.6]} 14... Nxa6 {[%clk 0:02:21.3]} 15. Be3 {[%clk 0:02:27.1]}
15... Nxd5 {[%clk 0:02:21]} 16. Bxd5 {[%clk 0:02:23.2]} 16... c6 {[%clk
0:02:19.6]} 17. Bc4 {[%clk 0:02:20.8]} 17... f5 {[%clk 0:02:19.5]} 18. h3 {[%clk
0:02:09.9]} 18... Bxf3 {[%clk 0:02:17.3]} 19. Qxf3 {[%clk 0:02:02.7]} 19... fxe4
{[%clk 0:02:17]} 20. Qd1 {[%clk 0:01:57.5]} 20... exd3 {[%clk 0:02:11.3]} 21.
Bxd3 {[%clk 0:01:58.4]} 21... d5 {[%clk 0:02:04.8]} 22. Rb1 {[%clk 0:01:48.9]}
22... Nc5 {[%clk 0:02:02.1]} 23. Bc2 {[%clk 0:01:49.3]} 23... Bd6 {[%clk
0:01:56.7]} 24. Qh5 {[%clk 0:01:35.8]} 24... e4 {[%clk 0:01:52.7]} 25. c4 {[%clk
0:01:32]} 25... Re5 {[%clk 0:01:44.5]} 26. Qe2 {[%clk 0:01:32.5]} 26... Ref5
{[%clk 0:01:35.6]} 27. cxd5 {[%clk 0:01:31.3]} 27... cxd5 {[%clk 0:01:35.5]} 28.
Qb5 {[%clk 0:01:22.6]} 28... Qc7 {[%clk 0:01:28.9]} 29. Qb6 {[%clk 0:01:21.2]}
29... Qe7 {[%clk 0:01:20.9]} 30. Rbd1 {[%clk 0:01:11.7]} 30... Qe5 {[%clk
0:01:15.7]} 31. Bxc5 {[%clk 0:00:40.4]} 31... Qh2+ {[%clk 0:01:05.8]} 32. Kf1
{[%clk 0:00:41]} 32... Bg3 {[%clk 0:00:59.1]} 33. Bxf8 {[%clk 0:00:30.1]} 33...
Qh1+ {[%clk 0:00:54.4]} 34. Ke2 {[%clk 0:00:30]} 34... Qxg2 {[%clk 0:00:54.6]}
35. Rf1 {[%clk 0:00:20.6]} 35... Qf3+ {[%clk 0:00:51.2]} 36. Ke1 {[%clk
0:00:17.8]} 36... Rxf8 {[%clk 0:00:43.2]} 37. Qd4 {[%clk 0:00:15.1]} 37... e3
{[%clk 0:00:36.3]} 38. Rd2 {[%clk 0:00:08.4]} 38... exd2+ {[%clk 0:00:28.6]} 39.
Kxd2 {[%clk 0:00:09.3]} 39... Bxf2 {[%clk 0:00:27.8]} 40. Qd3 {[%clk 0:00:09]}
40... Be3+ {[%clk 0:00:25.2]} 41. Kc3 {[%clk 0:00:09.5]} 41... d4+ {[%clk
0:00:24]} 42. Kb3 {[%clk 0:00:09.6]} 42... Qxf1 {[%clk 0:00:24.2]} 43. Qxh7#
{[%clk 0:00:09.4]} 1-0

[Event "Late-Titled-Tuesday-Blitz-January-16-2024"]
[Site "Chess.com"]
[Date "2024.01.16"]
[Round "4"]
[White "ahmedkandiliii"]
[Black "Sic_Transit_GM"]
[Result "0-1"]
[WhiteElo "2420"]
[BlackElo "2675"]
[TimeControl "180+1"]
[EndTime "14:37:48 PST"]
[Termination "Sic_Transit_GM won by resignation"]

1. e4 {[%clk 0:03:00.9]} 1... g6 {[%clk 0:02:58.9]} 2. Nf3 {[%clk 0:03:01.2]}
2... Bg7 {[%clk 0:02:59.2]} 3. d4 {[%clk 0:03:00.8]} 3... c6 {[%clk 0:02:59.2]}
4. Nc3 {[%clk 0:02:59.3]} 4... d5 {[%clk 0:02:59.7]} 5. e5 {[%clk 0:02:59.5]}
5... Bg4 {[%clk 0:02:59.1]} 6. h3 {[%clk 0:02:58.6]} 6... Bxf3 {[%clk
0:02:59.3]} 7. Qxf3 {[%clk 0:02:58]} 7... e6 {[%clk 0:03:00.2]} 8. Bd3 {[%clk
0:02:57.8]} 8... a6 {[%clk 0:02:59.6]} 9. O-O {[%clk 0:02:55.5]} 9... c5 {[%clk
0:02:59.8]} 10. dxc5 {[%clk 0:02:50.3]} 10... Nc6 {[%clk 0:02:59.6]} 11. Re1
{[%clk 0:02:46.1]} 11... Nxe5 {[%clk 0:02:59.6]} 12. Qg3 {[%clk 0:02:45.6]}
12... Nc6 {[%clk 0:02:48.5]} 13. Bf4 {[%clk 0:02:41.1]} 13... Nge7 {[%clk
0:02:47]} 14. Bd6 {[%clk 0:02:35.7]} 14... O-O {[%clk 0:02:46.7]} 15. h4 {[%clk
0:02:32]} 15... Nd4 {[%clk 0:02:34]} 16. h5 {[%clk 0:02:14]} 16... Nef5 {[%clk
0:02:32.5]} 17. Qh2 {[%clk 0:02:06.8]} 17... Nxd6 {[%clk 0:02:28.5]} 18. cxd6
{[%clk 0:02:07]} 18... Rc8 {[%clk 0:02:22]} 19. Rad1 {[%clk 0:01:49]} 19... Rc6
{[%clk 0:02:19.1]} 20. h6 {[%clk 0:01:29.1]} 20... Bh8 {[%clk 0:02:16.8]} 21.
Qf4 {[%clk 0:01:12.9]} 21... Qxd6 {[%clk 0:02:14]} 22. Qh4 {[%clk 0:01:10.9]}
22... Qd8 {[%clk 0:02:06.4]} 23. Qg3 {[%clk 0:01:00]} 23... Qf6 {[%clk
0:02:01.2]} 24. Qg4 {[%clk 0:00:51.9]} 24... Nf5 {[%clk 0:01:56.9]} 25. Bxf5
{[%clk 0:00:39.4]} 25... Qxf5 {[%clk 0:01:57.8]} 26. Qxf5 {[%clk 0:00:39.4]}
26... gxf5 {[%clk 0:01:58.4]} 27. Rd3 {[%clk 0:00:38.2]} 27... Rfc8 {[%clk
0:01:48.6]} 28. Rg3+ {[%clk 0:00:33.7]} 28... Kf8 {[%clk 0:01:48.6]} 29. Kh2
{[%clk 0:00:24.5]} 29... b5 {[%clk 0:01:46.8]} 30. a3 {[%clk 0:00:23.9]} 30...
d4 {[%clk 0:01:46]} 31. Ne2 {[%clk 0:00:20.7]} 31... Rxc2 {[%clk 0:01:45.8]} 32.
Nf4 {[%clk 0:00:19.8]} 32... Rxf2 {[%clk 0:01:42.1]} 33. Nh5 {[%clk 0:00:19.1]}
33... Rcc2 {[%clk 0:01:36]} 34. Ng7 {[%clk 0:00:16.1]} 34... f4 {[%clk
0:01:30.3]} 35. Rg4 {[%clk 0:00:15.9]} 35... f3 {[%clk 0:01:26.9]} 36. Kh3
{[%clk 0:00:13.1]} 36... fxg2 {[%clk 0:01:16.2]} 37. Rxd4 {[%clk 0:00:12.6]}
37... Rfd2 {[%clk 0:01:16]} 38. Rf4 {[%clk 0:00:11.3]} 38... Bxg7 {[%clk
0:01:15.4]} 39. hxg7+ {[%clk 0:00:10.5]} 39... Kxg7 {[%clk 0:01:16.3]} 40. Rg4+
{[%clk 0:00:11]} 40... Kf8 {[%clk 0:01:15.2]} 41. b4 {[%clk 0:00:07.4]} 41...
Rc3+ {[%clk 0:01:09.4]} 42. Kh2 {[%clk 0:00:06.8]} 42... Rxa3 {[%clk 0:01:09.4]}
43. Kg1 {[%clk 0:00:06.7]} 43... Rad3 {[%clk 0:01:08.2]} 44. Kh2 {[%clk
0:00:05.9]} 44... Rd1 {[%clk 0:01:07.3]} 45. Rxd1 {[%clk 0:00:05.2]} 45... Rxd1
{[%clk 0:01:08.2]} 46. Rxg2 {[%clk 0:00:05.3]} 46... Rd4 {[%clk 0:01:06.8]} 47.
Ra2 {[%clk 0:00:05.9]} 47... Rxb4 {[%clk 0:01:06]} 48. Rxa6 {[%clk 0:00:06.8]}
48... Rb1 {[%clk 0:01:05.3]} 49. Kg3 {[%clk 0:00:06.4]} 49... b4 {[%clk
0:01:05.8]} 50. Kf4 {[%clk 0:00:06.7]} 50... b3 {[%clk 0:01:06]} 51. Rb6 {[%clk
0:00:05]} 51... Kg7 {[%clk 0:01:06.1]} 52. Ke3 {[%clk 0:00:05]} 52... b2 {[%clk
0:01:06.7]} 53. Kf2 {[%clk 0:00:05.4]} 53... Rh1 {[%clk 0:01:05.9]} 0-1